fUSD/lending_fUSD_20240213
["ID","MTS","AMOUNT","RATE_DAILY","PERIOD"]
[313942795,1707844281469,-500.0,0.00029863,2]
[313942796,1707844281480,-500.0,0.00029863,2]
[313942797,1707844281489,-500.0,0.00029863,2]
[313942798,1707844281500,-616.2,0.00029863,2]
[313942799,1707844281509,-508.66,0.00029863,2]
[313942800,1707844281519,-437.09,0.00029863,2]
[313942801,1707844281529,-560.77,0.00029863,2]
[313942802,1707844281539,-500.0,0.00029863,2]
[313942803,1707844281549,-500.0,0.00029863,2]
[313942804,1707844281559,-591.57,0.00029863,2]
[313942805,1707844281569,-363.13,0.00029863,2]
[313942806,1707844281579,-500.0,0.00029863,2]
[313942807,1707844281589,-500.0,0.00029863,2]
[313942808,1707844281600,-571.35,0.00029863,2]
[313942809,1707844281610,-167.98415142,0.00029863,2]
[313942810,1707844281620,-513.22373717,0.00029863,2]
[313942811,1707844281629,-500.0,0.00029863,2]
[313942812,1707844281639,-500.0,0.00029863,2]
[313942813,1707844281649,-325.56,0.00029863,2]
[313942814,1707844281658,-500.0,0.00029863,2]
[313942815,1707844281668,-416.1,0.00029863,2]
[313942816,1707844281679,-500.0,0.00029863,2]
[313942817,1707844281688,-500.0,0.00029863,2]
[313942818,1707844281698,-500.0,0.00029863,2]
[313942819,1707844281707,-521.83112717,0.00029863,2]
[313942820,1707844281717,-433.51,0.00029863,2]
[313942821,1707844281726,-646.84,0.00029863,2]
[313942822,1707844281735,-332.04381077,0.00029863,2]
[313942823,1707844281745,-244.75,0.00029863,2]
[313942824,1707844281754,-578.7,0.00029863,2]
[313942825,1707844281764,-500.0,0.00029863,2]
[313942826,1707844281773,-635.52611373,0.00029863,2]
[313942827,1707844281782,-500.0,0.00029863,2]
[313942828,1707844281791,-500.0,0.00029863,2]
[313942829,1707844281801,-500.0,0.00029863,2]
[313942830,1707844281811,-500.0,0.00029863,2]
[313942831,1707844281820,-500.0,0.00029863,2]
[313942832,1707844281829,-500.0,0.00029863,2]
[313942833,1707844281838,-500.0,0.00029863,2]
[313942834,1707844281848,-500.0,0.00029863,2]
[313942835,1707844281857,-500.0,0.00029863,2]
[313942836,1707844281866,-634.19392887,0.00029863,2]
[313942837,1707844281875,-500.0,0.00029863,2]
[313942838,1707844281885,-586.23653744,0.00029863,2]
[313942839,1707844281894,-500.0,0.00029863,2]
[313942840,1707844281903,-384.76,0.00029863,2]
[313942841,1707844281912,-500.0,0.00029863,2]
[313942842,1707844281922,-638.66,0.00029863,2]
[313942843,1707844281931,-500.0,0.00029863,2]
[313942844,1707844281940,-500.0,0.00029863,2]
[313942845,1707844281949,-542.93,0.00029863,2]
[313942846,1707844281959,-413.63,0.00029863,2]
[313942847,1707844281968,-500.0,0.00029863,2]
[313942848,1707844281978,-644.01,0.00029863,2]
[313942849,1707844281987,-506.79,0.00029863,2]
[313942850,1707844281996,-154.74,0.00029863,2]
[313942851,1707844282006,-500.0,0.00029863,2]
[313942852,1707844282017,-159.11,0.00029863,2]
[313942853,1707844282028,-500.0,0.00029863,2]
[313942854,1707844282040,-524.12211766,0.00029863,2]
[313942855,1707844282054,-342.56,0.00029863,2]
[313942856,1707844282067,-463.19,0.00029863,2]
[313942857,1707844282077,-500.0,0.00029863,2]
[313942858,1707844282086,-500.0,0.00029863,2]
[313942859,1707844282096,-500.0,0.00029863,2]
[313942860,1707844282105,-500.0,0.00029863,2]
[313942861,1707844282115,-500.0,0.00029863,2]
[313942862,1707844282124,-500.0,0.00029863,2]
[313942863,1707844282134,-1934.6,0.00029863,2]
[313942864,1707844282143,-500.0,0.00029863,2]
[313942865,1707844282152,-796.91,0.00029863,2]
[313942866,1707844282161,-500.0,0.00029863,2]
[313942867,1707844282171,-500.0,0.00029863,2]
[313942868,1707844282181,-500.0,0.00029863,2]
[313942869,1707844282190,-500.0,0.00029863,2]
[313942870,1707844282199,-500.0,0.00029863,2]
[313942871,1707844282209,-260.01,0.00029863,2]
[313942872,1707844282219,-500.0,0.00029863,2]
[313942873,1707844282228,-500.0,0.00029863,2]
[313942874,1707844282238,-500.0,0.00029863,2]
[313942875,1707844282343,-500.0,0.00029863,2]
[313942876,1707844282352,-319.32603871,0.00029863,2]
[313942877,1707844282361,-500.0,0.00029863,2]
[313942878,1707844282370,-500.0,0.00029863,2]
[313942879,1707844282378,-522.98,0.00029863,2]
[313942880,1707844282388,-500.0,0.00029863,2]
[313942881,1707844282397,-500.0,0.00029863,2]
[313942882,1707844282406,-500.0,0.00029863,2]
[313942883,1707844282414,-433.4,0.00029863,2]
[313942884,1707844282424,-570.02005516,0.00029863,2]
[313942885,1707844282434,-197.00511978,0.00029863,2]
[313942886,1707844282443,-500.0,0.00029863,2]
[313942887,1707844282452,-500.0,0.00029863,2]
[313942888,1707844282461,-534.84673411,0.00029863,2]
[313942889,1707844282471,-355.89120596,0.00029863,2]
[313942890,1707844282480,-500.0,0.00029863,2]
[313942891,1707844282489,-500.0,0.00029863,2]
[313942892,1707844282498,-500.0,0.00029863,2]
[313942893,1707844282507,-500.0,0.00029863,2]
[313942894,1707844282516,-500.0,0.00029863,2]
[313942895,1707844282526,-500.0,0.00029863,2]
[313942896,1707844282535,-500.0,0.00029863,2]
[313942897,1707844282544,-500.0,0.00029863,2]
[313942898,1707844282553,-500.0,0.00029863,2]
[313942899,1707844282562,-500.0,0.00029863,2]
[313942900,1707844282571,-500.0,0.00029863,2]
[313942901,1707844282580,-431.21,0.00029863,2]
[313942902,1707844282590,-500.0,0.00029863,2]
[313942903,1707844282601,-500.0,0.00029863,2]
[313942904,1707844282610,-500.0,0.00029863,2]
[313942905,1707844282619,-186.52518493,0.00029863,2]
[313942906,1707844282629,-500.0,0.00029863,2]
[313942907,1707844282638,-500.0,0.00029863,2]
[313942908,1707844282647,-500.0,0.00029863,2]
[313942909,1707844282656,-500.0,0.00029863,2]
[313942910,1707844282666,-500.0,0.00029863,2]
[313942911,1707844282677,-500.0,0.00029863,2]
[313942912,1707844282686,-355.98248981,0.00029863,2]
[313942913,1707844282695,-500.0,0.00029863,2]
[313942914,1707844282705,-500.0,0.00029863,2]
[313942915,1707844282714,-177.74,0.00029863,2]
[313942916,1707844282723,-500.0,0.00029863,2]
[313942917,1707844282732,-500.0,0.00029863,2]
[313942918,1707844282741,-500.0,0.00029863,2]
[313942919,1707844282750,-500.0,0.00029863,2]
[313942920,1707844282760,-500.0,0.00029863,2]
[313942921,1707844282769,-167.2746214,0.00029863,2]
[313942922,1707844282778,-219.87,0.00029863,2]
[313942923,1707844282787,-500.0,0.00029863,2]
[313942924,1707844282796,-500.0,0.00029863,2]
[313942925,1707844282806,-500.0,0.00029863,2]
[313942926,1707844282815,-500.0,0.00029863,2]
[313942927,1707844282825,-540.54,0.00029863,2]
[313942928,1707844282834,-524.29917252,0.00029863,2]
[313942929,1707844282843,-500.0,0.00029863,2]
[313942930,1707844282853,-500.0,0.00029863,2]
[313942931,1707844282862,-500.0,0.00029863,2]
[313942932,1707844282872,-500.0,0.00029863,2]
[313942933,1707844282882,-500.0,0.00029863,2]
[313942934,1707844282891,-500.0,0.00029863,2]
[313942935,1707844282900,-594.87693713,0.00029863,2]
[313942936,1707844282910,-500.0,0.00029863,2]
[313942937,1707844282920,-500.0,0.00029863,2]
[313942938,1707844282930,-502.25,0.00029863,2]
[313942939,1707844282939,-500.0,0.00029863,2]
[313942940,1707844282948,-500.0,0.00029863,2]
[313942941,1707844282957,-500.0,0.00029863,2]
[313942942,1707844282967,-602.35,0.00029863,2]
[313942943,1707844282976,-500.0,0.00029863,2]
[313942944,1707844282986,-575.17,0.00029863,2]
[313942945,1707844282995,-223.26879189,0.00029863,2]
[313942946,1707844283004,-500.0,0.00029863,2]
[313942947,1707844283021,-500.0,0.00029863,2]
[313942948,1707844283039,-500.0,0.00029863,2]
[313942949,1707844283056,-1707.88,0.00029863,2]
[313942950,1707844283076,-500.0,0.00029863,2]
[313942951,1707844283091,-500.0,0.00029863,2]
[313942952,1707844283108,-500.0,0.00029863,2]
[313942953,1707844283127,-708.66,0.00029863,2]
[313942954,1707844283145,-1697.57,0.00029863,2]
[313942955,1707844283164,-1398.01,0.00029863,2]
[313942956,1707844283181,-500.0,0.00029863,2]
[313942957,1707844283200,-498.37,0.00029863,2]
[313942958,1707844283220,-500.0,0.00029863,2]
[313942959,1707844283235,-500.0,0.00029863,2]
[313942960,1707844283252,-2373.55,0.00029863,2]
[313942961,1707844283267,-500.0,0.00029863,2]
[313942962,1707844283282,-500.0,0.00029863,2]
[313942963,1707844283299,-750.3,0.00029863,2]
[313942964,1707844283315,-500.0,0.00029863,2]
[313942965,1707844283331,-192.98,0.00029863,2]
[313942966,1707844283347,-500.0,0.00029863,2]
[313942967,1707844283363,-500.0,0.00029863,2]
[313942968,1707844283379,-502.3,0.00029863,2]
[313942969,1707844283394,-537.7,0.00029863,2]
[313942970,1707844283408,-668.93,0.00029863,2]
[313942971,1707844283423,-153.58,0.00029863,2]
[313942972,1707844283444,-500.0,0.00029863,2]
[313942973,1707844283460,-720.34,0.00029863,2]
[313942974,1707844283475,-500.0,0.00029863,2]
[313942975,1707844283489,-500.0,0.00029863,2]
[313942976,1707844283504,-491.57,0.00029863,2]
[313942977,1707844283519,-500.0,0.00029863,2]
[313942978,1707844283534,-615.8,0.00029863,2]
[313942979,1707844283550,-500.0,0.00029863,2]
[313942980,1707844283564,-500.0,0.00029863,2]
[313942981,1707844283580,-500.0,0.00029863,2]
[313942982,1707844283595,-500.0,0.00029863,2]
[313942983,1707844283610,-500.0,0.00029863,2]
[313942984,1707844283624,-500.0,0.00029863,2]
[313942985,1707844283638,-2732.31,0.00029863,2]
[313942986,1707844283652,-500.0,0.00029863,2]
[313942987,1707844283667,-500.0,0.00029863,2]
[313942988,1707844283683,-500.0,0.00029863,2]
[313942989,1707844283698,-500.0,0.00029863,2]
[313942990,1707844283713,-500.0,0.00029863,2]
[313942991,1707844283728,-500.0,0.00029863,2]
[313942992,1707844283743,-500.0,0.00029863,2]
[313942993,1707844283757,-500.0,0.00029863,2]
[313942994,1707844283772,-1017.52,0.00029863,2]
[313942995,1707844283786,-500.0,0.00029863,2]
[313942996,1707844283800,-830.13,0.00029863,2]
[313942997,1707844283814,-972.43,0.00029863,2]
[313942998,1707844283828,-500.0,0.00029863,2]
[313942999,1707844283843,-500.0,0.00029863,2]
[313943000,1707844283856,-500.0,0.00029863,2]
[313943001,1707844283871,-500.0,0.00029863,2]
[313943002,1707844283885,-539.37,0.00029863,2]
[313943003,1707844283898,-500.0,0.00029863,2]
[313943004,1707844283913,-868.91,0.00029863,2]
[313943005,1707844283932,-500.0,0.00029863,2]
[313943006,1707844283946,-500.0,0.00029863,2]
[313943007,1707844283960,-525.01,0.00029863,2]
[313943008,1707844283974,-500.0,0.00029863,2]
[313943009,1707844283988,-500.0,0.00029863,2]
[313943010,1707844284003,-500.0,0.00029863,2]
[313943011,1707844284017,-500.0,0.00029863,2]
[313943012,1707844284031,-500.0,0.00029863,2]
[313943013,1707844284046,-629.55,0.00029863,2]
[313943014,1707844284064,-228.09139059,0.00029863,2]
[313943015,1707844284078,-500.0,0.00029863,2]
[313943016,1707844284093,-500.0,0.00029863,2]
[313943017,1707844284110,-500.0,0.00029863,2]
[313943018,1707844284125,-500.0,0.00029863,2]
[313943019,1707844284141,-500.0,0.00029863,2]
[313943020,1707844284293,-500.0,0.00029863,2]
[313943021,1707844284304,-500.0,0.00029863,2]
[313943022,1707844284313,-500.0,0.00029863,2]
[313943023,1707844284323,-500.0,0.00029863,2]
[313943024,1707844284333,-858.16,0.00029863,2]
[313943025,1707844284342,-500.0,0.00029863,2]
[313943026,1707844284351,-500.0,0.00029863,2]
[313943027,1707844284361,-3042.48,0.00029863,2]
[313943028,1707844284370,-552.26,0.00029863,2]
[313943029,1707844284380,-1415.52,0.00029863,2]
[313943030,1707844284389,-500.0,0.00029863,2]
[313943031,1707844284399,-500.0,0.00029863,2]
[313943032,1707844284408,-1038.84,0.00029863,2]
[313943033,1707844284418,-500.0,0.00029863,2]
[313943034,1707844284430,-500.0,0.00029863,2]
[313943035,1707844284439,-500.0,0.00029863,2]
[313943036,1707844284448,-500.0,0.00029863,2]
[313943037,1707844284457,-500.0,0.00029863,2]
[313943038,1707844284466,-291.49494147,0.00029863,2]
[313943039,1707844284476,-500.0,0.00029863,2]
[313943040,1707844284485,-1247.85,0.00029863,2]
[313943041,1707844284494,-597.23,0.00029863,2]
[313943042,1707844284504,-500.0,0.00029863,2]
[313943043,1707844284513,-500.0,0.00029863,2]
[313943044,1707844284523,-500.0,0.00029863,2]
[313943045,1707844284532,-500.0,0.00029863,2]
[313943046,1707844284541,-500.0,0.00029863,2]
[313943047,1707844284550,-500.0,0.00029863,2]
[313943048,1707844284560,-500.0,0.00029863,2]
[313943049,1707844284570,-500.0,0.00029863,2]
[313943050,1707844284580,-790.24,0.00029863,2]
[313943051,1707844284589,-2805.34,0.00029863,2]
[313943052,1707844284599,-500.0,0.00029863,2]
[313943053,1707844284609,-500.0,0.00029863,2]
[313943054,1707844284619,-500.0,0.00029863,2]
[313943055,1707844284629,-1697.28,0.00029863,2]
[313943056,1707844284638,-500.0,0.00029863,2]
[313943057,1707844284647,-500.0,0.00029863,2]
[313943058,1707844284657,-500.0,0.00029863,2]
[313943059,1707844284666,-2116.33,0.00029863,2]
[313943060,1707844284676,-549.56,0.00029863,2]
[313943061,1707844284685,-500.0,0.00029863,2]
[313943062,1707844284693,-500.0,0.00029863,2]
[313943063,1707844284702,-500.0,0.00029863,2]
[313943064,1707844284712,-500.0,0.00029863,2]
[313943065,1707844284722,-500.0,0.00029863,2]
[313943066,1707844284732,-500.0,0.00029863,2]
[313943067,1707844284742,-500.0,0.00029863,2]
[313943068,1707844284752,-500.0,0.00029863,2]
[313943069,1707844284762,-500.0,0.00029863,2]
[313943070,1707844284771,-500.0,0.00029863,2]
[313943071,1707844284781,-1175.54,0.00029863,2]
[313943072,1707844284791,-500.0,0.00029863,2]
[313943073,1707844284800,-203.30616609,0.00029863,2]
[313943074,1707844284811,-500.0,0.00029863,2]
[313943075,1707844284820,-759.92,0.00029863,2]
[313943076,1707844284830,-500.0,0.00029863,2]
[313943077,1707844284840,-546.2,0.00029863,2]
[313943078,1707844284851,-576.54,0.00029863,2]
[313943079,1707844284860,-500.0,0.00029863,2]
[313943080,1707844284871,-500.0,0.00029863,2]
[313943081,1707844284881,-751.2,0.00029863,2]
[313943082,1707844284891,-500.0,0.00029863,2]
[313943083,1707844284900,-620.11,0.00029863,2]
[313943084,1707844284910,-500.0,0.00029863,2]
[313943085,1707844284920,-503.76,0.00029863,2]
[313943086,1707844284930,-1788.82,0.00029863,2]
[313943087,1707844284939,-875.2,0.00029863,2]
[313943088,1707844284948,-500.0,0.00029863,2]
[313943089,1707844284957,-500.0,0.00029863,2]
[313943090,1707844284967,-500.0,0.00029863,2]
[313943091,1707844284977,-1080.3,0.00029863,2]
[313943092,1707844284987,-643.52,0.00029863,2]
[313943093,1707844284997,-503.9,0.00029863,2]
[313943094,1707844285007,-500.0,0.00029863,2]
[313943095,1707844285017,-500.0,0.00029863,2]
[313943096,1707844285027,-900.51,0.00029863,2]
[313943097,1707844285038,-476.25320216,0.00029863,2]
[313943098,1707844285048,-500.0,0.00029863,2]
[313943099,1707844285059,-500.0,0.00029863,2]
[313943100,1707844285070,-630.01,0.00029863,2]
[313943101,1707844285079,-610.21,0.00029863,2]
[313943102,1707844285089,-500.0,0.00029863,2]
[313943103,1707844285100,-500.0,0.00029863,2]
[313943104,1707844285110,-500.0,0.00029863,2]
[313943105,1707844285119,-500.0,0.00029863,2]
[313943106,1707844285129,-500.0,0.00029863,2]
[313943107,1707844285141,-500.0,0.00029863,2]
[313943108,1707844285151,-500.0,0.00029863,2]
[313943109,1707844285161,-3980.59,0.00029863,2]
[313943110,1707844285171,-500.0,0.00029863,2]
[313943111,1707844285182,-517.81,0.00029863,2]
[313943112,1707844285193,-500.0,0.00029863,2]
[313943113,1707844285203,-500.0,0.00029863,2]
[313943114,1707844285214,-180.05308091,0.00029863,2]
[313943115,1707844285224,-1284.81,0.00029863,2]
[313943116,1707844285234,-500.0,0.00029863,2]
[313943117,1707844285244,-2930.43053173,0.00029865,2]
[313943118,1707844285254,-1000.0,0.00029899,2]
[313943119,1707844285264,-500.0,0.00029999,2]
[313943120,1707844285274,-500.0,0.00029999,2]
[313943121,1707844285284,-500.0,0.00029999,2]
[313943122,1707844285294,-500.0,0.00029999,2]
[313943123,1707844285304,-500.0,0.00029999,2]
[313943124,1707844285314,-500.0,0.00029999,2]
[313943125,1707844285324,-500.0,0.00029999,2]
[313943126,1707844285335,-500.0,0.00029999,2]
[313943127,1707844285344,-500.0,0.00029999,2]
[313943128,1707844285354,-500.0,0.00029999,2]
[313943129,1707844285363,-500.0,0.00029999,2]
[313943130,1707844285372,-500.0,0.00029999,2]
[313943131,1707844285382,-504.88018624,0.00029999,2]
[313943132,1707844285392,-50000.0,0.0003,2]
[313943133,1707844285401,-155.0,0.0003,2]
[313943134,1707844285411,-16643.12864896,0.0003,3]
[313943135,1707844285420,-73383.11595309,0.0003,4]
[313943136,1707844285430,-410.87195225,0.0003,2]
[313943137,1707844285440,-474.55762423,0.0003,4]
[313943138,1707844285449,-1816.0305017,0.0003,4]
[313943139,1707844285458,-156.84757172,0.0003,4]
[313943140,1707844285468,-164.40426451,0.0003,4]
[313943141,1707844285478,-155.0,0.0003,2]
[313943142,1707844285487,-1000.0,0.0003,2]
[313943143,1707844285497,-2000.0,0.0003,3]
[313943144,1707844285507,-3000.0,0.0003,2]
[313943145,1707844285517,-3000.0,0.0003,2]
[313943146,1707844285527,-48863.73431222,0.00030133,2]
[313943147,1707844285537,-552.03134812,0.00030133,2]
[313943148,1707844285547,-695.09084172,0.00030136,2]
[313943149,1707844285556,-5647.71096775,0.00030136,2]
[313943150,1707844285566,-1060.38409947,0.00030136,4]
[313943151,1707844285575,-176.6,0.00030136,2]
[313943152,1707844285586,-500.0,0.00030136,2]
[313943153,1707844285595,-500.0,0.00030136,2]
[313943154,1707844285604,-500.0,0.00030136,2]
[313943155,1707844285614,-500.0,0.00030136,2]
[313943156,1707844285624,-500.0,0.00030136,2]
[313943157,1707844285633,-500.0,0.00030136,2]
[313943158,1707844285643,-296.15,0.00030136,2]
[313943159,1707844285652,-500.0,0.00030136,2]
[313943160,1707844285661,-424.98,0.00030136,2]
[313943161,1707844285671,-500.0,0.00030136,2]
[313943162,1707844285684,-500.0,0.00030136,2]
[313943163,1707844285693,-500.0,0.00030136,2]
[313943164,1707844285702,-500.0,0.00030136,2]
[313943165,1707844285711,-252.27444536,0.00030136,2]
[313943166,1707844285720,-263.01,0.00030136,2]
[313943167,1707844285730,-500.0,0.00030136,2]
[313943168,1707844285739,-500.0,0.00030136,2]
[313943169,1707844285749,-384.88855862,0.00030136,2]
[313943170,1707844285758,-289.75493882,0.00030136,2]
[313943171,1707844285768,-500.0,0.00030136,2]
[313943172,1707844285777,-458.2839755,0.00030136,2]
[313943173,1707844285786,-500.0,0.00030136,2]
[313943174,1707844285796,-500.0,0.00030136,2]
[313943175,1707844285805,-411.40273703,0.00030136,2]
[313943176,1707844285814,-500.0,0.00030136,2]
[313943177,1707844285824,-575.99798967,0.00030136,2]
[313943178,1707844285834,-643.54,0.00030136,2]
[313943179,1707844285843,-191.18,0.00030136,2]
[313943180,1707844285853,-500.0,0.00030136,2]
[313943181,1707844285862,-500.0,0.00030136,2]
[313943182,1707844285871,-1934.6,0.00030136,2]
[313943183,1707844285881,-210.31,0.00030136,2]
[313943184,1707844285890,-796.91,0.00030136,2]
[313943185,1707844285900,-500.0,0.00030136,2]
[313943186,1707844285909,-500.0,0.00030136,2]
[313943187,1707844285918,-500.0,0.00030136,2]
[313943188,1707844285930,-500.0,0.00030136,2]
[313943189,1707844285939,-500.0,0.00030136,2]
[313943190,1707844285949,-500.0,0.00030136,2]
[313943191,1707844285958,-516.15533974,0.00030136,2]
[313943192,1707844285967,-500.0,0.00030136,2]
[313943193,1707844285977,-500.0,0.00030136,2]
[313943194,1707844285986,-408.5879806,0.00030136,2]
[313943195,1707844285996,-500.0,0.00030136,2]
[313943196,1707844286006,-500.0,0.00030136,2]
[313943197,1707844286015,-500.0,0.00030136,2]
[313943198,1707844286025,-500.0,0.00030136,2]
[313943199,1707844286035,-167.74,0.00030136,2]
[313943200,1707844286045,-500.0,0.00030136,2]
[313943201,1707844286055,-500.0,0.00030136,2]
[313943202,1707844286067,-297.94,0.00030136,2]
[313943203,1707844286076,-500.0,0.00030136,2]
[313943204,1707844286086,-500.0,0.00030136,2]
[313943205,1707844286096,-500.0,0.00030136,2]
[313943206,1707844286106,-293.58,0.00030136,2]
[313943207,1707844286116,-500.0,0.00030136,2]
[313943208,1707844286125,-434.44,0.00030136,2]
[313943209,1707844286137,-166.57,0.00030136,2]
[313943210,1707844286146,-500.0,0.00030136,2]
[313943211,1707844286156,-500.0,0.00030136,2]
[313943212,1707844286166,-500.0,0.00030136,2]
[313943213,1707844286177,-445.74072057,0.00030136,2]
[313943214,1707844286187,-500.0,0.00030136,2]
[313943215,1707844286197,-500.0,0.00030136,2]
[313943216,1707844286206,-500.0,0.00030136,2]
[313943217,1707844286216,-214.67393801,0.00030136,2]
[313943218,1707844286226,-500.0,0.00030136,2]
[313943219,1707844286235,-329.5,0.00030136,2]
[313943220,1707844286245,-497.54,0.00030136,2]
[313943221,1707844286254,-500.0,0.00030136,2]
[313943222,1707844286264,-500.0,0.00030136,2]
[313943223,1707844286273,-500.0,0.00030136,2]
[313943224,1707844286283,-500.0,0.00030136,2]
[313943225,1707844286292,-540.54,0.00030136,2]
[313943226,1707844286302,-500.0,0.00030136,2]
[313943227,1707844286312,-280.6266907,0.00030136,2]
[313943228,1707844286322,-500.0,0.00030136,2]
[313943229,1707844286332,-500.0,0.00030136,2]
[313943230,1707844286342,-241.88,0.00030136,2]
[313943231,1707844286351,-500.0,0.00030136,2]
[313943232,1707844286361,-502.25,0.00030136,2]
[313943233,1707844286370,-626.74,0.00030136,2]
[313943234,1707844286380,-500.0,0.00030136,2]
[313943235,1707844286389,-500.0,0.00030136,2]
[313943236,1707844286399,-500.0,0.00030136,2]
[313943237,1707844286409,-391.53,0.00030136,2]
[313943238,1707844286418,-567.95,0.00030136,2]
[313943239,1707844286429,-1707.88,0.00030136,2]
[313943240,1707844286438,-296.66,0.00030136,2]
[313943241,1707844286447,-155.16,0.00030136,2]
[313943242,1707844286456,-500.0,0.00030136,2]
[313943243,1707844286466,-708.66,0.00030136,2]
[313943244,1707844286475,-1697.57,0.00030136,2]
[313943245,1707844286485,-1398.01,0.00030136,2]
[313943246,1707844286495,-500.0,0.00030136,2]
[313943247,1707844286505,-500.0,0.00030136,2]
[313943248,1707844286515,-2373.55,0.00030136,2]
[313943249,1707844286525,-500.0,0.00030136,2]
[313943250,1707844286536,-500.0,0.00030136,2]
[313943251,1707844286546,-750.3,0.00030136,2]
[313943252,1707844286556,-500.0,0.00030136,2]
[313943253,1707844286566,-500.0,0.00030136,2]
[313943254,1707844286576,-500.0,0.00030136,2]
[313943255,1707844286585,-502.3,0.00030136,2]
[313943256,1707844286595,-537.7,0.00030136,2]
[313943257,1707844286605,-668.93,0.00030136,2]
[313943258,1707844286614,-500.0,0.00030136,2]
[313943259,1707844286624,-720.34,0.00030136,2]
[313943260,1707844286633,-537.14,0.00030136,2]
[313943261,1707844286643,-500.0,0.00030136,2]
[313943262,1707844286652,-500.0,0.00030136,2]
[313943263,1707844286780,-615.8,0.00030136,2]
[313943264,1707844286790,-500.0,0.00030136,2]
[313943265,1707844286799,-500.0,0.00030136,2]
[313943266,1707844286809,-500.0,0.00030136,2]
[313943267,1707844286818,-500.0,0.00030136,2]
[313943268,1707844286828,-500.0,0.00030136,2]
[313943269,1707844286837,-500.0,0.00030136,2]
[313943270,1707844286847,-2732.31,0.00030136,2]
[313943271,1707844286857,-504.2819593,0.00030136,2]
[313943272,1707844286867,-500.0,0.00030136,2]
[313943273,1707844286877,-500.0,0.00030136,2]
[313943274,1707844286887,-500.0,0.00030136,2]
[313943275,1707844286897,-500.0,0.00030136,2]
[313943276,1707844286906,-500.0,0.00030136,2]
[313943277,1707844286916,-500.0,0.00030136,2]
[313943278,1707844286928,-500.0,0.00030136,2]
[313943279,1707844286939,-1017.52,0.00030136,2]
[313943280,1707844286948,-595.88603461,0.00030136,2]
[313943281,1707844286958,-830.13,0.00030136,2]
[313943282,1707844286969,-972.43,0.00030136,2]
[313943283,1707844286979,-497.94,0.00030136,2]
[313943284,1707844286989,-500.0,0.00030136,2]
[313943285,1707844286999,-500.0,0.00030136,2]
[313943286,1707844287010,-500.0,0.00030136,2]
[313943287,1707844287019,-539.37,0.00030136,2]
[313943288,1707844287029,-500.0,0.00030136,2]
[313943289,1707844287039,-500.0,0.00030136,2]
[313943290,1707844287052,-868.91,0.00030136,2]
[313943291,1707844287065,-500.0,0.00030136,2]
[313943292,1707844287074,-525.01,0.00030136,2]
[313943293,1707844287084,-500.0,0.00030136,2]
[313943294,1707844287094,-620.34,0.00030136,2]